[Event "Cabo Verde Open 2022"]
[Site "Mindelo-S. Vicente"]
[Date "2022.04.23"]
[Round "2.6"]
[White "L`Ami, Alina"]
[Black "Lesbros, Bernard"]
[Result "1-0"]
[ECO "D80"]
[WhiteElo "2287"]
[BlackElo "1865"]
[Annotator "TA"]
[PlyCount "73"]
[EventDate "2022.04.22"]
[EventType "swiss"]
[SourceTitle "playchess.com"]
[Source "ChessBase"]
[SourceQuality "1"]
[TimeControl "40/5400+30:1800+30"]

{[%evp 9,73,3,21,21,20,10,15,0,4,15,3,2,20,24,29,22,35,36,70,50,104,95,172,179,202,170,197,197,195,195,195,195,196,195,198,200,237,229,247,208,245,167,162,149,225,190,365,164,170,174,196,172,266,226,289,292,427,431,638,638,638,631,618,528,6516,6390]} 1. d4 {[%emt 0:00:05]} Nf6 {[%emt 0:00:45]} 2. c4 {[%emt 0:00:14]} g6 {[%emt 0:00:13]} 3. Nc3 {[%emt 0:00:14]} d5 {[%emt 0:00:16]} 4. Bg5 {[%emt 0:00:08]} Ne4 {[%emt 0:00:25]} 5. h4 {[%emt 0:00:23]} Nxc3 {[%emt 0:02:16]} 6. bxc3 {[%emt 0:00:29] D80: Grünfeld: Unusual White 4th moves and 4 Bg5.} Bg7 {[%emt 0:02:58]} 7. cxd5 {[%emt 0:01:59]} Qxd5 {[%emt 0:00:31]} 8. e3 {[%emt 0:00:33] The position is equal.} c5 {[%emt 0:08:49]} 9. Qf3 {[%emt 0:03:52]} Qxf3 {[%emt 0:03:59]} 10. Nxf3 {[%emt 0:00:46]} cxd4 {[%emt 0:11:21]} 11. cxd4 {[%emt 0:01:10] [#]} (11. Nxd4 $2 h6 12. Bf4 e5 $19) 11... h6 $146 {[%emt 0:01:44]} ({Predecessor:} 11... Nc6 12. Rb1 a6 13. Be2 e5 14. d5 Na5 15. e4 b5 16. h5 gxh5 17. Nd2 Bd7 18. Rxh5 {1-0 (32) Shishkin,V (2502)-Kaczorowski,P (2058) Lazy 2013}) 12. Bf4 {[%emt 0:01:46]} Bf5 {[%emt 0:05:45]} 13. Bb5+ {[%emt 0:08:18]} Bd7 {[%emt 0:03:58]} 14. Bd3 {[%emt 0:07:30] White is more active.} (14. Rb1 $5 {[%cal Rb5d7]}) 14... Nc6 {[%emt 0:12:10] White leaves nothing to chance now.} ({Black should play} 14... Bc6 $14) 15. Rb1 $16 {[%emt 0:00:51]} Rc8 {[%emt 0:02:17]} (15... b6 $16) 16. Rxb7 $18 {[%emt 0:05:32]} e5 {[%emt 0:02:50]} 17. Nxe5 {[%emt 0:22:25]} (17. dxe5 Nd8 18. Rb1 O-O) 17... Nxe5 {[%emt 0:01:31]} 18. Bxe5 {[%emt 0:00:15]} Bxe5 {[%emt 0:00:59]} 19. dxe5 {[%emt 0:00:37]} (19. Bxg6 $2 Rc1+ 20. Ke2 Rxh1 $19) 19... Rc1+ {[%emt 0:09:30]} 20. Ke2 {[%emt 0:02:43]} ({But not} 20. Kd2 Rxh1 21. Rb8+ Ke7 22. Rxh8 Rxh4) 20... Rxh1 {[%emt 0:01:25]} 21. Rb8+ {[%emt 0:00:07][%mdl 64] Skewer} Ke7 {[%emt 0:00:24]} 22. Rxh8 {[%emt 0:00:04]} Rxh4 {[%emt 0:02:19][%mdl 4096] Endgame KRB-KRB} 23. f4 {[%emt 0:11:01]} Bc6 {[%emt 0:08:51]} 24. Kf2 {[%emt 0:04:10]} h5 {[%emt 0:02:38]} 25. Be2 {[%emt 0:10:02]} Rh1 {[%emt 0:02:59]} 26. Bf1 {[%emt 0:02:25]} Rh4 {[%emt 0:05:16]} (26... a5 $16 {keeps fighting.} 27. Rb8 h4) 27. Rc8 {[%emt 0:03:17]} Kd7 {[%emt 0:00:46] [#]} (27... Bd7 {might work better.} 28. Rc7 Kd8 29. Rxa7 g5) 28. Rb8 {[%emt 0:02:51]} (28. Rxc6 $142 $1 {[%mdl 512]} Kxc6 29. g3 (29. Bc4 g5 $14) 29... Rh2+ 30. Bg2+ Kc5 31. Kg1 Rxg2+ 32. Kxg2) 28... Bd5 {[%emt 0:03:07]} 29. a3 {[%emt 0:02:00]} Bc6 {[%emt 0:01:03]} 30. Rb4 {[%emt 0:00:37]} a5 {[%emt 0:00:13]} (30... Rh1 {was called for.} 31. Rb3 Be4) 31. Rd4+ {[%emt 0:00:20]} Kc7 {[%emt 0:00:20]} 32. Bc4 {[%emt 0:02:04]} Rh2 {[%emt 0:00:31]} (32... Be8 $142 33. Rd6 f5) 33. Bd5 {[%emt 0:00:36] White is clearly winning.} Be8 {[%emt 0:00:47]} (33... Bxd5 $142 34. Rxd5 Kc8) 34. Kg1 {[%emt 0:01:27]} Rh4 {[%emt 0:00:09]} 35. Bf3 {[%emt 0:00:09] Prevents Rg4.} Bd7 {[%emt 0:00:23]} 36. g3 {[%emt 0:00:27]} Rh3 {[%emt 0:00:20] [#]} 37. Rxd7+ $1 {[%emt 0:00:34][%mdl 512] Weighted Error Value: White=0.22 (precise) /Black=0.42} 1-0

[Event "Cabo Verde Open 2022"]
[Site "Mindelo-S. Vicente"]
[Date "2022.04.23"]
[Round "2.8"]
[White "Varela La Madrid, Tilsia Carolina"]
[Black "Babo, Miguel"]
[Result "1-0"]
[ECO "B00"]
[WhiteElo "2097"]
[BlackElo "1789"]
[Annotator "TA"]
[PlyCount "151"]
[EventDate "2022.04.22"]
[EventType "swiss"]
[SourceTitle "playchess.com"]
[Source "ChessBase"]
[SourceQuality "1"]
[TimeControl "40/5400+30:1800+30"]

{[%evp 9,151,50,39,39,49,49,54,27,79,43,60,38,143,130,135,142,164,154,154,27,151,54,237,233,429,283,381,346,365,366,442,435,436,400,433,8,429,4,22,10,46,25,39,27,19,36,164,172,179,174,204,187,183,175,193,189,337,335,340,338,413,350,387,370,403,396,400,406,676,463,465,339,419,394,1030,716,544,394,411,285,511,487,811,697,584,404,826,251,251,251,251,251,233,233,233,225,225,225,225,225,218,0,12842,12375,29966,29967,29966,29968,29972,29973,29974,29975,29973,29974,29977,29978,29978,29979,29979,29978,29978,29978,29978,29967,29967,29968,29956,29969,29976,29977,29986,29987,29987,29988,29988,29989,29990,29991,29991,29992,29995,29989,29993,29994]} 1. e4 {[%emt 0:04:00]} Nc6 {[%emt 0:00:37]} 2. Nf3 {[%emt 0:00:12]} f5 {[%emt 0:00:04]} 3. exf5 {[%emt 0:00:07]} d5 {[%emt 0:00:09]} 4. d4 {[%emt 0:00:08]} Bxf5 {[%emt 0:00:21]} 5. Bd3 {[%emt 0:00:11]} Bg4 {[%emt 0:00:12]} 6. h3 {[%emt 0:00:45] B00: Queen's Fianchetto Defence, Nimzowitsch Defence.} (6. Bb5 {is interesting.} e6 7. h3 Bxf3 8. Qxf3 Qd7 9. O-O) 6... Bxf3 {[%emt 0:00:10]} 7. Qxf3 {[%emt 0:00:34]} Nf6 {[%emt 0:00:17] Prevents Qh5+.} 8. c3 {[%emt 0:04:58] White is slightly better.} e6 {[%emt 0:00:33]} (8... e5 $11 {remains equal.}) 9. O-O {[%emt 0:03:15]} Bd6 $1 {[%emt 0:01:48] [#]} 10. Qe2 $146 {[%emt 0:00:58]} ({Predecessor:} 10. Bf4 O-O 11. Bxd6 Qxd6 12. Nd2 e5 13. dxe5 Nxe5 14. Qe2 Rae8 15. Bc2 Neg4 16. Qxg4 Nxg4 17. hxg4 {0-1 (32) Buss,A (1729)-Schneider,I (2512) Playchess.com INT 2021}) 10... Kd7 {[%emt 0:11:34]} ({Better is} 10... Qe7 $14) 11. b4 {[%emt 0:01:16]} (11. Re1 Qe7 $16) 11... Qe8 {[%emt 0:04:04]} 12. Re1 {[%emt 0:01:40]} Qf7 {[%emt 0:01:36]} 13. Nd2 {[%emt 0:01:53]} Rae8 {[%emt 0:01:03]} 14. a4 {[%emt 0:02:00]} (14. b5 $16 Na5 15. Nb3) 14... Qh5 {[%emt 0:03:35]} (14... e5 $1 $11 {keeps the balance.}) 15. Nf3 {[%emt 0:09:16]} (15. b5 $16 Na5 16. Nf3) 15... Kc8 $2 {[%emt 0:08:26]} (15... e5 $1 $14) 16. Bb5 $1 $18 {[%emt 0:03:55]} Kd7 $2 {[%emt 0:20:00]} (16... Nd8 17. Bxe8 Rxe8) 17. Bg5 {[%emt 0:04:43]} Qf7 {[%emt 0:02:54]} 18. Bxc6+ {[%emt 0:01:15]} bxc6 {[%emt 0:00:10]} 19. b5 {[%emt 0:00:49]} cxb5 {[%emt 0:05:23]} 20. Qxb5+ {[%emt 0:02:26]} Ke7 {[%emt 0:06:58]} 21. Ne5 {[%emt 0:01:57] Intending Qd7+ and mate.} Qh5 {[%emt 0:01:20]} 22. Qd7+ {[%emt 0:00:28]} Kf8 {[%emt 0:00:19] [#]} 23. Bxf6 {[%emt 0:00:10]} (23. g4 $1 $18 {[%mdl 512] And now Bxf6 would win.} Qxg4+ 24. hxg4 Nxd7 25. Nxd7+ Kg8 26. Ne5) 23... gxf6 $11 {[%emt 0:00:57]} 24. Ng4 $40 {[%emt 0:03:48][%cal Be5g4,Bg4e3,Be3c4][%mdl 160] White is up to no good.} Qf7 {[%emt 0:02:17]} (24... Re7 $5 {[%cal Re7d7]} 25. Qb5 (25. Nxf6 $2 Qf5 $19) 25... Qg5 $14) 25. Qc6 {[%emt 0:03:00]} h5 {[%emt 0:02:30]} 26. Ne3 {[%emt 0:00:17]} Rg8 {[%emt 0:04:02]} 27. c4 {[%emt 0:00:57][%cal Rc4d5]} dxc4 {[%emt 0:01:57]} (27... f5 $14) 28. Nxc4 $18 {[%emt 0:00:24]} Rd8 {[%emt 0:03:34]} 29. Rab1 {[%emt 0:01:18]} Rg5 {[%emt 0:06:52]} 30. Rb7 {[%emt 0:02:17]} a5 {[%emt 0:04:04]} 31. Reb1 {[%emt 0:05:30]} Rd5 {[%emt 0:01:25]} 32. Nxd6 {[%emt 0:02:08]} R5xd6 {[%emt 0:00:23]} (32... R8xd6 $142 33. Qc3 (33. Qxc7 Qxc7 34. Rxc7 Rxd4 $16) (33. Qc1 Rd7 $16) 33... Rd7 34. Rb8+ Kg7) 33. Qc5 {[%emt 0:02:00]} (33. Qxc7 Qxc7 34. Rxc7 Rxd4 $16) 33... R8d7 {[%emt 0:01:45] [#]} 34. Rxc7 $3 {[%emt 0:00:34][%mdl 512]} Kg7 {[%emt 0:02:26]} (34... Rxc7 35. Qxd6+) 35. Rxd7 {[%emt 0:02:45]} Rxd7 {[%emt 0:02:07]} 36. Qxa5 {[%emt 0:01:23]} Rxd4 {[%emt 0:00:44][%mdl 4096] Endgame KQR-KQR} 37. Qa8 {[%emt 0:02:36]} Rd7 {[%emt 0:00:41]} 38. Qf3 {[%emt 0:03:23] aiming for a5.} Kh6 {[%emt 0:01:12]} (38... Ra7 $142 39. Rb6 Qd7 40. Qxh5 Rxa4) 39. Qf4+ {[%emt 0:01:46]} Kh7 {[%emt 0:00:13]} 40. Kh2 {[%emt 0:00:00]} Qg6 {[%emt 0:00:00]} 41. Rb6 {[%emt 0:05:09]} (41. Rg1 e5 42. Qf3 Rg7 $18) 41... Qf7 {[%emt 0:10:53]} (41... Kg7 42. Rxe6 Qg5) 42. Qe4+ {[%emt 0:00:49]} f5 {[%emt 0:01:41]} 43. Qxe6 {[%emt 0:00:33]} Qxe6 {[%emt 0:00:16]} 44. Rxe6 {[%emt 0:00:07] KR-KR} Ra7 $2 {[%emt 0:00:05]} (44... h4 45. Re5 Rd4) 45. Re5 {[%emt 0:00:15]} Rxa4 {[%emt 0:00:26]} (45... Kg6 $142 46. a5 Kg5) 46. Rxf5 {[%emt 0:00:06]} Kg6 {[%emt 0:00:20]} 47. Rb5 {[%emt 0:00:18]} h4 {[%emt 0:01:55]} (47... Ra3 $142 48. g3 Ra2) 48. g4 $2 {[%emt 0:01:20]} (48. Rb2 Rc4 49. Rb6+ Kg7 50. Re6) 48... hxg3+ {[%emt 0:00:30]} 49. fxg3 {[%emt 0:00:06] Threatens to win with h4.} ({Don't do} 49. Kxg3 $6 Ra1 50. h4 Rh1 51. Rg5+ (51. f4 Rg1+ 52. Kf2 Ra1 $16) 51... Kf6 $16) 49... Ra2+ {[%emt 0:00:58]} 50. Kg1 {[%emt 0:00:07]} Ra1+ {[%emt 0:01:43]} 51. Kf2 {[%emt 0:00:07] Black must now prevent h4.} Ra2+ {[%emt 0:00:04]} 52. Kf3 {[%emt 0:01:23]} Ra3+ {[%emt 0:00:07]} 53. Kf4 {[%emt 0:00:13]} Ra4+ {[%emt 0:01:32]} 54. Ke5 {[%emt 0:00:10]} Ra3 {[%emt 0:01:05] [#] Inhibits Rb3.} 55. Rb6+ $2 {[%emt 0:00:08]} (55. Rb8 $1 $18 {[%cal Rb8g8]}) 55... Kg7 {[%emt 0:00:59][%mdl 8192]} (55... Kg5 $11) 56. Kf4 {[%emt 0:00:13] White threatens Rc6 and mate.} Ra4+ {[%emt 0:00:50]} 57. Kg5 {[%emt 0:00:12] White mates.} Ra5+ {[%emt 0:00:16]} 58. Kh4 {[%emt 0:00:17]} Ra4+ {[%emt 0:02:00]} 59. g4 {[%emt 0:00:09]} Ra5 {[%emt 0:01:30]} 60. g5 {[%emt 0:00:16]} Ra3 {[%emt 0:01:27]} 61. Kg4 {[%emt 0:00:12]} Ra4+ {[%emt 0:00:50]} 62. Kh5 {[%emt 0:00:12]} Ra7 {[%emt 0:02:24]} 63. h4 {[%emt 0:00:26][%cal Bh3h4,Bh4h5,Bh5h6][%mdl 32]} Rc7 {[%emt 0:00:17]} 64. Rg6+ {[%emt 0:00:24]} Kh7 {[%emt 0:00:28]} 65. Rf6 {[%emt 0:00:11]} Kg7 {[%emt 0:00:11]} 66. Kg4 {[%emt 0:00:08]} Rc4+ {[%emt 0:00:16]} 67. Rf4 {[%emt 0:00:09]} Rc6 {[%emt 0:00:44]} 68. h5 {[%emt 0:00:20]} Rc5 {[%emt 0:01:38]} 69. h6+ {[%emt 0:02:29]} Kg6 {[%emt 0:04:50]} 70. Rf6+ {[%emt 0:00:09]} Kh7 {[%emt 0:00:09]} 71. Rf7+ {[%emt 0:00:10]} Kh8 {[%emt 0:00:33]} 72. g6 {[%emt 0:01:21][%cal Rf7f8,Bg5g6,Bg6g7][%mdl 32]} Rc8 {[%emt 0:02:11]} 73. Kg5 {[%emt 0:00:09]} Rc5+ {[%emt 0:00:32]} 74. Rf5 {[%emt 0:00:16]} Rc8 {[%emt 0:00:18]} 75. g7+ {[%emt 0:00:40]} Kg8 {[%emt 0:00:51]} 76. Kg6 {[%emt 0:00:08] Weighted Error Value: White=0.47/Black=0.67} 1-0

[Event "Cabo Verde Open 2022"]
[Site "Mindelo-S. Vicente"]
[Date "2022.04.24"]
[Round "3.1"]
[White "Strikovic, Aleksa"]
[Black "L`Ami, Alina"]
[Result "1-0"]
[ECO "A25"]
[WhiteElo "2489"]
[BlackElo "2287"]
[Annotator "TA"]
[PlyCount "68"]
[EventDate "2022.04.22"]
[EventType "swiss"]
[SourceTitle "playchess.com"]
[Source "ChessBase"]
[SourceQuality "1"]
[TimeControl "40/5400+30:1800+30"]

{[%evp 17,68,16,26,11,52,29,55,62,54,35,122,88,113,109,106,117,105,73,99,57,102,74,100,90,110,99,152,147,134,83,155,161,154,142,172,167,433,420,525,531,516,497,1115,1099,1059,1000,5904,5660,29989,29990,29991,29992,29999]} 1. c4 {[%emt 0:00:06]} e5 {[%emt 0:00:17]} 2. g3 {[%emt 0:00:20]} Nc6 {[%emt 0:02:01]} 3. Bg2 {[%emt 0:00:07]} f5 {[%emt 0:00:21]} 4. Nc3 {[%emt 0:00:56]} Nf6 {[%emt 0:01:03]} 5. e3 {[%emt 0:02:09]} g6 {[%emt 0:06:30]} 6. Nge2 {[%emt 0:02:00]} Bg7 {[%emt 0:03:17]} 7. d3 {[%emt 0:00:18]} d6 {[%emt 0:02:06]} 8. Rb1 {[%emt 0:00:11]} O-O {[%emt 0:03:39]} 9. b4 {[%emt 0:00:09]} Ne7 {[%emt 0:04:51]} 10. b5 {[%emt 0:02:51] A25: English Opening vs King's Indian with ...Nc6 but without early d3.} g5 {[%emt 0:05:40][%cal Of5f4]} 11. f4 {[%emt 0:01:34]} h6 {[%emt 0:03:14]} 12. O-O {[%emt 0:00:35] White is slightly better.} Qe8 {[%emt 0:10:48]} 13. c5 {[%emt 0:21:11] [#]} exf4 $146 {[%emt 0:16:18]} (13... Qh5 $14) ({Predecessor:} 13... Qh5 14. cxd6 cxd6 15. b6 axb6 16. Rxb6 Ra6 17. Qb3+ Kh8 18. Rxb7 Bxb7 19. Qxb7 Rxa2 20. Nxa2 Qxe2 21. Qxe7 Qxa2 22. fxg5 hxg5 23. Qxd6 {1-0 (55) Kartsev,S (2208)-Muschik,B (2295) Germany 2015}) 14. exf4 $16 {[%emt 0:02:47] Threatens to win with cxd6.} g4 {[%emt 0:03:15]} 15. cxd6 {[%emt 0:02:20]} cxd6 {[%emt 0:00:22]} 16. Re1 {[%emt 0:01:08]} (16. Ba3 {keeps more tension.} Qd8 17. Re1 Ne8 18. Qa4) 16... Qf7 {[%emt 0:03:14]} 17. Ba3 {[%emt 0:04:26]} Rd8 {[%emt 0:03:12]} 18. Qd2 {[%emt 0:02:13]} Rb8 {[%emt 0:06:00]} ({Less strong is} 18... Nfd5 19. Nxd5 Nxd5 20. Bb2 $16) 19. Bb2 {[%emt 0:07:38]} h5 {[%emt 0:05:13]} 20. Qe3 {[%emt 0:02:29]} Ra8 {[%emt 0:02:14]} 21. Nd4 {[%emt 0:02:48]} Ng6 {[%emt 0:02:19]} ({Better is} 21... Re8) 22. Qf2 {[%emt 0:04:40]} h4 {[%emt 0:03:23]} 23. Re2 {[%emt 0:00:28] &Bianco is more active.} ({Resist} 23. gxh4 d5 $16) (23. Rbc1 $142) 23... Kh8 {[%emt 0:02:04]} (23... Rb8 $142) 24. Rbe1 {[%emt 0:00:39]} ({Don't play} 24. gxh4 $6 d5 $14) 24... h3 {[%emt 0:02:32]} 25. Bh1 {[%emt 0:00:24]} d5 {[%emt 0:01:15] [#]} 26. Re5 $1 {[%emt 0:06:54][%mdl 512]} Nxe5 $2 {[%emt 0:03:01]} (26... Kg8 27. Nxf5 Nxe5 28. fxe5 Ne8 29. Nxg7 Qxf2+ 30. Kxf2 Nxg7) (26... Ne8 27. Rxd5) 27. fxe5 $18 {[%emt 0:00:12]} Nh5 {[%emt 0:00:42]} 28. e6 {[%emt 0:00:30]} Qg6 {[%emt 0:01:32]} 29. Nxd5 {[%emt 0:07:26]} Rg8 {[%emt 0:03:57]} (29... Rxd5 $142 30. Bxd5 Qf6) 30. Nxf5 {[%emt 0:05:03] Pair of Knights!} Bxe6 {[%emt 0:00:38]} 31. Nxg7 {[%emt 0:00:35][%mdl 64] [#] Deflection} Nxg7 {[%emt 0:00:15]} 32. Nf4 {[%emt 0:00:09][%csl LRb7,LRe6,LRg6][%mdl 64] Discovered Attack} Qf7 {[%emt 0:00:44]} 33. Rxe6 {[%emt 0:00:53][%cal Re6h6]} Kh7 {[%emt 0:00:20]} 34. Be4+ {[%emt 0:00:43]} Kh8 {[%emt 0:01:13] Weighted Error Value: White=0.10 (very precise) /Black=0.73} 1-0

[Event "Cabo Verde Open 2022"]
[Site "Mindelo-S. Vicente"]
[Date "2022.04.24"]
[Round "3.2"]
[White "Galego, Luis"]
[Black "Maisuradze, Nino"]
[Result "1-0"]
[ECO "A30"]
[WhiteElo "2474"]
[BlackElo "2202"]
[Annotator "TA"]
[PlyCount "119"]
[EventDate "2022.04.22"]
[EventType "swiss"]
[SourceTitle "playchess.com"]
[Source "ChessBase"]
[SourceQuality "1"]
[TimeControl "40/5400+30:1800+30"]

{[%evp 17,119,26,22,33,41,27,57,68,68,45,39,30,31,35,37,18,28,-12,-10,-25,0,-22,-16,-25,-20,-25,-25,-25,-21,-34,-38,-34,-33,-41,-27,-35,-27,-27,-20,-21,-21,-20,-6,-29,-14,-22,-20,-20,-21,-21,-9,-26,-22,-25,-3,-3,0,0,0,0,0,0,0,0,2,0,0,0,0,0,0,0,0,0,630,261,5969,5172,3005,2614,3625,2620,2879,2731,2261,1369,3578,9436,5509,9100,7066,7182,7066,6848,5193,4856,1889,1366,6079,4614,6087,5558,2306,1793]} 1. d4 {[%emt 0:00:15]} Nf6 {[%emt 0:04:16]} 2. Nf3 {[%emt 0:00:22]} b6 {[%emt 0:02:06]} 3. g3 {[%emt 0:02:15]} Bb7 {[%emt 0:00:03]} 4. Bg2 {[%emt 0:00:06]} c5 {[%emt 0:00:59]} 5. O-O {[%emt 0:02:32]} cxd4 {[%emt 0:05:51]} 6. Qxd4 {[%emt 0:02:05]} g6 {[%emt 0:01:37]} 7. c4 {[%emt 0:02:40]} Bg7 {[%emt 0:00:16]} 8. Nc3 {[%emt 0:00:43]} Nc6 {[%emt 0:01:02]} 9. Qh4 {[%emt 0:06:07]} h6 {[%emt 0:02:33]} 10. Qf4 {[%emt 0:21:54] A30: Symmetrical English: Double Fianchetto and Hedgehog.} Qb8 {[%emt 0:11:07]} 11. Qe3 {[%emt 0:06:35] [#]} Ng4 $146 {[%emt 0:14:38]} ({Predecessor:} 11... e6 12. Qd3 g5 13. Nb5 O-O 14. Nd6 Ng4 15. Nxb7 Qxb7 16. h3 {½-½ (16) Larsen,S (2318)-Schandorff,L (2547) Denmark 2002}) 12. Qd2 {[%emt 0:01:26] White is slightly better.} Nce5 {[%emt 0:03:22]} 13. Nxe5 {[%emt 0:03:09]} Nxe5 {[%emt 0:02:10]} 14. Bxb7 {[%emt 0:01:50]} Qxb7 {[%emt 0:00:06]} 15. b3 {[%emt 0:00:37]} h5 {[%emt 0:01:52][%cal Bh6h5,Bh5h4][%mdl 32]} 16. Bb2 {[%emt 0:04:48]} h4 {[%emt 0:11:27]} 17. Qd5 {[%emt 0:01:22]} O-O-O {[%emt 0:04:28]} 18. Qxb7+ {[%emt 0:20:03]} Kxb7 {[%emt 0:00:02]} 19. Nd5 {[%emt 0:02:56]} e6 {[%emt 0:08:12]} 20. Ne3 {[%emt 0:00:30]} hxg3 {[%emt 0:06:53]} 21. hxg3 {[%emt 0:00:39] [#]} Nf3+ $1 {[%emt 0:04:14]} 22. exf3 {[%emt 0:00:09]} Bxb2 {[%emt 0:00:01]} 23. Rad1 {[%emt 0:00:09]} g5 {[%emt 0:02:57]} 24. Kg2 {[%emt 0:02:53][%cal Oc4c5]} Kc7 {[%emt 0:02:20]} 25. Rd2 {[%emt 0:01:09]} Bg7 {[%emt 0:00:50][%cal Bb2g7,Bg7f8,Bf8e7,Be7f6,Bf6c3][%mdl 32]} 26. Rc1 {[%emt 0:02:46]} Bf8 {[%emt 0:05:22]} 27. Ng4 {[%emt 0:01:28]} f5 {[%emt 0:01:29]} 28. Ne5 {[%emt 0:01:40] Threatens to win with Nf7.} Rh7 {[%emt 0:00:20] Inhibits Nf7.} 29. Nd3 {[%emt 0:02:20]} Be7 {[%emt 0:00:52]} 30. Rcd1 {[%emt 0:03:23]} (30. f4 {keeps more tension.} g4 31. c5 Rdh8 32. cxb6+ Kxb6 33. Rdc2) 30... Bf6 {[%emt 0:02:56]} 31. f4 {[%emt 0:01:28]} g4 {[%emt 0:00:54]} 32. Rh1 {[%emt 0:03:17]} Rxh1 {[%emt 0:00:23]} 33. Kxh1 $11 {[%emt 0:00:03][%mdl 4096] Endgame KRB-KRN} d5 {[%emt 0:00:34]} 34. c5 {[%emt 0:00:49]} b5 {[%emt 0:00:37]} 35. Kg2 {[%emt 0:00:31]} Bc3 {[%emt 0:00:25]} 36. Re2 {[%emt 0:00:13]} Re8 {[%emt 0:00:13]} 37. f3 {[%emt 0:00:16]} gxf3+ {[%emt 0:00:04]} 38. Kxf3 {[%emt 0:00:06]} a5 {[%emt 0:00:51]} 39. a3 {[%emt 0:02:05]} Kc6 {[%emt 0:00:52]} 40. b4 {[%emt 0:00:00]} a4 {[%emt 0:00:00]} 41. Rh2 {[%emt 0:05:15]} Rh8 {[%emt 0:04:28]} 42. Rh4 {[%emt 0:07:57]} Bf6 {[%emt 0:06:25]} 43. Rxh8 {[%emt 0:17:56]} Bxh8 {[%emt 0:00:02] KB-KN} 44. g4 {[%emt 0:00:07]} fxg4+ 45. Kxg4 {[%emt 0:00:01]} d4 $2 {[%emt 0:11:21][%mdl 8192] White stays focused until the end.} (45... Bd4 $11) 46. f5 {[%emt 0:00:33]} (46. Kg5 $142 Kd5 47. Kg6) 46... e5 $2 {[%emt 0:05:26]} (46... exf5+ 47. Kxf5 Bg7) 47. Kf3 $18 {[%emt 0:01:38] White is clearly winning.} Kd5 {[%emt 0:00:09]} 48. Nf2 {[%emt 0:00:01]} Bg7 {[%emt 0:04:27]} 49. Ne4 {[%emt 0:00:12]} Bh6 {[%emt 0:00:35]} 50. f6 {[%emt 0:00:11]} d3 {[%emt 0:01:53]} 51. f7 {[%emt 0:00:40] Black must now prevent Nf2.} d2 {[%emt 0:01:10] [#]} 52. Nxd2 $1 {[%emt 0:00:57][%mdl 512]} Ke6 {[%emt 0:00:17]} 53. Ne4 {[%emt 0:02:32]} (53. Nb1 $142 Kxf7 54. Nc3) 53... Kxf7 {[%emt 0:00:53]} 54. Nd6+ {[%emt 0:00:11]} Ke6 {[%emt 0:00:12]} 55. Ke4 {[%emt 0:00:33]} Bc1 {[%emt 0:00:52]} 56. Nxb5 {[%emt 0:00:06]} Bd2 {[%emt 0:00:05]} 57. Kd3 {[%emt 0:01:03]} Bc1 {[%emt 0:00:37]} 58. Kc2 {[%emt 0:00:08]} Be3 {[%emt 0:00:42]} 59. Nc3 {[%emt 0:00:03]} Bd4 {[%emt 0:00:30]} 60. Kd3 {[%emt 0:02:47] Weighted Error Value: White=0.16 (very precise) /Black=0.28 (precise)} 1-0